bitfinex/quotes_BTCUSD_20240827
["timestamp","ask_amount","ask_price","bid_price","bid_amount"]
[1724765598348,1.93583169,62454.0,62451.0,0.0004]
[1724765598788,1.92183169,62454.0,62451.0,0.0004]
[1724765599865,1.93583169,62454.0,62451.0,0.0004]
[1724765600088,1.92183169,62454.0,62451.0,0.0004]
[1724765600294,1.91073487,62454.0,62451.0,0.0004]
[1724765600505,1.92473487,62454.0,62451.0,0.0004]
[1724765600785,1.89673487,62454.0,62451.0,0.0004]
[1724765601020,0.494352,62454.0,62451.0,0.0004]
[1724765601239,0.508352,62454.0,62453.0,0.09375002]
[1724765601456,0.014,62454.0,62453.0,0.09375002]
[1724765601672,0.174117,62454.0,62453.0,0.09375002]
[1724765601886,0.028,62454.0,62453.0,0.09375002]
[1724765602111,0.188117,62454.0,62453.0,0.09375002]
[1724765602730,0.508352,62454.0,62453.0,0.09375002]
[1724765602944,0.828587,62454.0,62453.0,0.09375002]
[1724765603375,0.8974457,62454.0,62453.0,0.09375002]
[1724765603587,1.2036807,62454.0,62453.0,0.09375002]
[1724765603801,1.2036807,62454.0,62453.0,0.01255002]
[1724765603802,1.2176807,62454.0,62453.0,0.01255002]
[1724765604018,1.148822,62454.0,62453.0,0.01255002]
[1724765604231,0.800587,62454.0,62453.0,0.01255002]
[1724765604659,0.802587,62454.0,62453.0,0.01455002]
[1724765605053,0.800587,62454.0,62453.0,0.01255002]
[1724765605759,0.160117,62454.0,62453.0,0.09545002]
[1724765605975,0.320197,62462.0,62453.0,0.09545002]
[1724765606198,0.160117,62454.0,62453.0,0.09545002]
[1724765606415,0.160117,62454.0,62453.0,0.09745002]
[1724765606641,0.480352,62454.0,62453.0,0.09745002]
[1724765607096,0.800587,62454.0,62453.0,0.09545002]
[1724765607311,1.120822,62454.0,62453.0,0.09545002]
[1724765607760,1.2329042,62454.0,62453.0,0.09545002]
[1724765607977,1.442057,62454.0,62453.0,0.01255002]
[1724765608194,1.442057,62454.0,62453.0,0.01455002]
[1724765608195,1.441057,62454.0,62453.0,0.01455002]
[1724765609332,1.67702245,62454.0,62453.0,0.01455002]
[1724765609566,1.67702245,62454.0,62453.0,0.01255002]
[1724765609567,1.8369879,62454.0,62453.0,0.01255002]
[1724765609833,1.8369879,62454.0,62453.0,0.01355002]
[1724765610252,1.7609879,62454.0,62453.0,0.01255002]
[1724765610478,1.46615178,62454.0,62453.0,0.01255002]
[1724765610689,1.15491678,62454.0,62453.0,0.09465002]
[1724765610911,1.129822,62454.0,62453.0,0.09465002]
[1724765611160,0.82568194,62454.0,62453.0,0.09465002]
[1724765611386,0.82868194,62454.0,62453.0,0.09465002]
[1724765611658,0.19321194,62454.0,62453.0,0.20735002]
[1724765612101,0.008,62454.0,62453.0,0.84767547]
[1724765612318,0.008,62454.0,62453.0,0.52743547]
[1724765612546,0.008,62454.0,62453.0,0.84767547]
[1724765612767,0.008,62454.0,62453.0,0.52743547]
[1724765612979,0.005,62454.0,62453.0,0.52743547]
[1724765613417,0.160109,62458.0,62454.0,0.160117]
[1724765613627,0.160109,62458.0,62454.0,0.16331899]
[1724765614742,0.163109,62458.0,62454.0,0.16331899]
[1724765614958,0.003,62458.0,62455.0,0.160113]
[1724765615187,0.003,62458.0,62457.0,0.16011]
[1724765615427,0.003,62458.0,62457.0,0.81019717]
[1724765615665,0.003,62458.0,62457.0,1.13041717]
[1724765615896,0.003,62458.0,62457.0,1.12821545]
[1724765616171,0.003,62458.0,62457.0,1.44843545]
[1724765616405,0.320154,62470.0,62466.0,0.0808]
[1724765616640,0.000824,62472.0,62466.0,0.24076545]
[1724765616862,0.18516241,62471.0,62467.0,0.160084]
[1724765617115,0.02508841,62471.0,62466.0,0.24076545]
[1724765617367,0.02508841,62471.0,62470.0,0.160076]
[1724765617588,0.02508841,62471.0,62470.0,0.24467718]
[1724765617805,0.02508841,62471.0,62470.0,0.56483018]
[1724765618024,0.001824,62472.0,62471.0,0.480222]
[1724765618281,0.001824,62472.0,62471.0,0.26436545]
[1724765618497,0.001824,62472.0,62471.0,0.42443945]
[1724765618739,0.001824,62472.0,62471.0,0.74458745]
[1724765618740,0.000824,62472.0,62471.0,0.74458745]
[1724765618931,0.000824,62472.0,62471.0,0.42443945]
[1724765619216,0.000824,62472.0,62471.0,0.74458745]
[1724765619476,0.000824,62472.0,62471.0,1.12943545]
[1724765619714,0.47989634,62497.0,62483.0,0.001]
[1724765619942,0.47989634,62497.0,62494.0,0.0788]
[1724765620177,0.000824,62501.0,62494.0,0.0788]
[1724765620656,0.160012,62495.0,62494.0,0.0788]
[1724765620902,0.160012,62495.0,62494.0,0.1435]
[1724765621142,0.16001,62496.0,62494.0,0.1435]
[1724765621388,0.160006,62498.0,62494.0,0.1435]
[1724765621627,0.16,62500.0,62494.0,0.30346545]
[1724765621866,0.001824,62501.0,62495.0,0.00319989]
[1724765621867,0.160005,62498.0,62495.0,0.00319989]
[1724765622087,0.001,62495.0,62494.0,0.30446545]
[1724765623260,0.001,62495.0,62494.0,0.30346545]
[1724765623489,0.001,62496.0,62494.0,0.31246545]
[1724765623754,0.001823,62496.0,62494.0,0.31246545]
[1724765623983,0.160834,62496.0,62494.0,0.31246545]
[1724765624205,0.001,62495.0,62494.0,0.009]
[1724765624445,0.802062,62495.0,62494.0,0.02]
[1724765624673,0.481037,62495.0,62488.0,0.00320022]
[1724765624907,0.001,62495.0,62494.0,0.64001045]
[1724765625177,0.001,62495.0,62494.0,0.97604045]
[1724765625409,0.001823,62496.0,62495.0,0.800062]
[1724765625655,0.001823,62496.0,62495.0,1.06292745]
[1724765625896,0.001823,62496.0,62495.0,2.10818945]
[1724765626135,0.000824,62501.0,62500.0,0.801]
[1724765626392,0.47989634,62531.0,62520.0,0.0829]
[1724765626644,0.47989634,62531.0,62524.0,0.0829]
[1724765626912,0.47989634,62531.0,62520.0,0.1]
[1724765626913,0.00824,62535.0,62533.0,0.160915]
[1724765627159,0.00824,62535.0,62533.0,1.20374245]
[1724765627396,0.00824,62535.0,62533.0,1.22674245]
[1724765628356,0.00824,62535.0,62534.0,0.882365]
[1724765628604,0.00824,62538.0,62537.0,0.800525]
[1724765628886,0.00824,62538.0,62537.0,1.48510045]
[1724765629113,0.34477401,62556.0,62537.0,1.48510045]
[1724765629114,0.02505701,62556.0,62552.0,0.159866]
[1724765629367,0.02505701,62556.0,62555.0,0.159859]
[1724765629597,0.02505701,62556.0,62555.0,0.16316225]
[1724765629836,0.02505701,62556.0,62555.0,0.15996545]
[1724765630069,0.31973,62553.0,62546.0,0.0822]
[1724765630317,0.159877,62548.0,62547.0,0.15996545]
[1724765630557,0.31973,62553.0,62547.0,0.15996545]
[1724765631034,0.159877,62548.0,62547.0,0.15996545]
[1724765631276,0.479631,62548.0,62547.0,0.15996545]
[1724765631512,0.076,62555.0,62546.0,0.005]
[1724765631768,0.02605701,62556.0,62547.0,0.15996545]
[1724765631998,0.319729,62553.0,62548.0,0.0031971]
[1724765632228,0.159873,62550.0,62548.0,0.0031971]
[1724765632463,0.159874,62549.0,62547.0,0.16316272]
[1724765632697,0.02505701,62556.0,62548.0,0.15996545]
[1724765632930,0.02505701,62556.0,62552.0,0.159866]
[1724765633169,0.02505701,62556.0,62553.0,0.16316237]
[1724765633656,0.00823,62559.0,62553.0,0.16316237]
[1724765633657,0.00823,62559.0,62558.0,0.479554]
[1724765633876,0.00823,62559.0,62558.0,0.95922245]
[1724765634088,0.00823,62559.0,62558.0,0.98222245]
[1724765635418,0.00823,62559.0,62558.0,1.30492545]
[1724765635843,0.00823,62559.0,62558.0,1.40492545]
[1724765636552,0.00823,62559.0,62558.0,1.48032545]
[1724765636785,0.0004,62579.0,62576.0,0.160805]
[1724765636997,0.0004,62579.0,62577.0,0.479409]
[1724765637208,0.0004,62579.0,62577.0,0.73937445]
[1724765637449,0.0004,62579.0,62577.0,1.05898045]
[1724765637673,0.320344,62594.0,62577.0,1.05898045]
[1724765637674,0.000822,62594.0,62593.0,0.159762]
[1724765637890,0.000822,62594.0,62593.0,0.34272745]
[1724765638563,0.000822,62594.0,62593.0,0.98277545]
[1724765638783,0.000822,62594.0,62593.0,1.30229945]
[1724765639036,0.000823,62601.0,62598.0,0.799747]
[1724765639258,0.00823,62603.0,62602.0,0.878795]
[1724765639472,0.00823,62603.0,62602.0,1.13876045]
[1724765639714,0.00823,62603.0,62602.0,0.36206545]
[1724765640154,0.00823,62603.0,62602.0,0.52180445]
[1724765640395,0.00823,62603.0,62602.0,0.36206545]
[1724765640836,0.487439,62603.0,62602.0,0.18296545]
[1724765641047,0.487439,62603.0,62595.0,0.0812]
[1724765641048,0.167967,62603.0,62595.0,0.0812]
[1724765641260,0.167967,62603.0,62597.0,0.319503]
[1724765641261,0.00823,62603.0,62597.0,0.319503]
[1724765641477,0.00923,62603.0,62602.0,0.011]
[1724765641739,0.00923,62603.0,62602.0,0.20915966]
[1724765641951,0.00823,62603.0,62602.0,0.54209866]
[1724765642182,0.00823,62603.0,62602.0,1.24105466]
[1724765642653,0.00823,62603.0,62602.0,1.22586045]
[1724765642878,0.00923,62603.0,62602.0,0.91838245]
[1724765643327,0.00923,62603.0,62602.0,0.43816545]
[1724765643599,0.00923,62603.0,62602.0,0.45470445]
[1724765643830,0.00923,62603.0,62602.0,0.29496545]
[1724765644317,0.00823,62603.0,62602.0,0.28296545]
[1724765644548,0.167966,62603.0,62602.0,0.28296545]
[1724765644772,0.807912,62603.0,62602.0,0.026]
[1724765645011,1.208185,62603.0,62602.0,0.012]
[1724765645245,0.00823,62603.0,62602.0,0.31970445]
[1724765645462,0.00923,62603.0,62602.0,0.18396545]
[1724765645692,0.00923,62603.0,62602.0,0.17096545]
[1724765645922,0.807912,62603.0,62602.0,0.011]
[1724765646174,1.126385,62603.0,62602.0,0.014]
[1724765646391,1.209285,62603.0,62602.0,0.014]
[1724765646609,1.591758,62603.0,62602.0,0.014]
[1724765647077,2.25540859,62603.0,62602.0,0.014]
[1724765647309,2.35540859,62603.0,62602.0,0.014]
[1724765647521,1.87675979,62603.0,62602.0,0.014]
[1724765647732,2.19623279,62603.0,62602.0,0.014]
[1724765647975,0.479424,62575.0,62574.0,0.47989634]
[1724765648230,0.79904,62575.0,62574.0,0.47989634]
[1724765648454,0.1401,62580.0,62561.0,0.0642]
[1724765648455,0.319624,62574.0,62561.0,0.0642]
[1724765648686,0.1401,62580.0,62564.0,0.159835]
[1724765648909,0.159795,62581.0,62566.0,0.001]
[1724765649146,0.319578,62583.0,62568.0,0.319647]
[1724765649369,0.15979,62582.0,62577.0,0.159801]
[1724765649575,0.15979,62582.0,62569.0,0.16316109]
[1724765649576,0.479394,62579.0,62578.0,0.16316102]
[1724765649787,0.479394,62579.0,62578.0,0.18616102]
[1724765650029,0.159798,62579.0,62578.0,0.18296545]
[1724765650454,0.319568,62585.0,62578.0,0.18296545]
[1724765650670,0.1375,62586.0,62579.0,0.00319553]
[1724765650671,0.159796,62580.0,62579.0,0.00319553]
[1724765650902,0.159773,62589.0,62579.0,0.18616098]
[1724765651111,0.1387,62592.0,62590.0,0.001]
[1724765651332,0.15978,62586.0,62580.0,0.16316077]
[1724765651552,0.319522,62594.0,62590.0,0.001]
[1724765651774,0.34458155,62591.0,62582.0,0.07869513]
[1724765652024,0.1413,62600.0,62590.0,0.001]
[1724765652253,0.1413,62600.0,62584.0,0.00319505]
[1724765652464,0.1413,62600.0,62585.0,0.34274745]
[1724765652678,0.1413,62600.0,62590.0,0.001]
[1724765652892,0.47934,62586.0,62585.0,0.18296545]
[1724765653108,0.47934,62586.0,62585.0,0.18396545]
[1724765653344,0.159775,62588.0,62587.0,0.001]
[1724765653557,0.319548,62589.0,62588.0,0.001]
[1724765653784,0.319544,62589.0,62588.0,0.001]
[1724765654002,0.159778,62587.0,62585.0,0.18296545]
[1724765654208,0.15978,62586.0,62585.0,0.18296545]
[1724765654421,0.319551,62588.0,62587.0,0.001]
[1724765654667,0.47934,62586.0,62585.0,0.18396545]
[1724765654892,0.47934,62586.0,62585.0,0.001]
[1724765654893,0.8812,62586.0,62585.0,0.001]
[1724765655122,0.8812,62586.0,62568.0,0.0634]
[1724765655123,0.319596,62579.0,62562.0,0.0634]
[1724765655344,0.159829,62567.0,62566.0,0.001]
[1724765655566,0.479479,62568.0,62567.0,0.001]
[1724765655782,0.319621,62574.0,62573.0,0.001]
[1724765655994,0.479478,62568.0,62567.0,0.15996545]
[1724765656406,0.159832,62566.0,62565.0,0.001]
[1724765656614,0.34465543,62577.0,62574.0,0.001]
[1724765656829,0.02504743,62577.0,62574.0,0.001]
[1724765657041,0.79904,62575.0,62574.0,0.001]
[1724765657463,0.79904,62575.0,62568.0,0.001]
[1724765657464,0.319641,62571.0,62568.0,0.001]
[1724765657683,0.79890773,62571.0,62570.0,0.001]
[1724765657903,0.319616,62576.0,62567.0,0.007]
[1724765657904,1.256582,62568.0,62567.0,0.007]
[1724765658123,1.256582,62568.0,62567.0,0.004]
[1724765658550,1.576234,62568.0,62567.0,0.003]
[1724765658769,1.73619945,62568.0,62567.0,0.003]
[1724765658999,1.73619945,62568.0,62540.0,0.0634]
[1724765659000,0.0799,62567.0,62540.0,0.0634]
[1724765659227,0.54221745,62568.0,62551.0,0.47989634]
[1724765659228,0.319733,62552.0,62551.0,0.47989634]
[1724765659441,0.159874,62550.0,62542.0,0.319783]
[1724765659681,0.159874,62550.0,62539.0,0.0803]
[1724765659682,0.319739,62551.0,62543.0,0.15996545]
[1724765659904,0.159879,62548.0,62543.0,0.31985445]
[1724765660121,0.47962845,62566.0,62551.0,0.001]
[1724765660122,0.319706,62558.0,62551.0,0.001]
[1724765660344,0.0799,62560.0,62543.0,0.15996545]
[1724765660345,0.159881,62547.0,62543.0,0.15996545]
[1724765660555,0.159887,62544.0,62543.0,0.16096545]
[1724765660762,0.79927,62557.0,62556.0,0.001]
[1724765661021,0.479562,62557.0,62556.0,0.001]
[1724765661226,0.159864,62554.0,62553.0,0.001]
[1724765661435,0.479587,62554.0,62553.0,0.001]
[1724765661645,0.159868,62552.0,62551.0,0.001]
[1724765661852,0.02805402,62558.0,62557.0,0.001]
[1724765661853,0.50460902,62558.0,62557.0,0.001]
[1724765662304,0.168854,62557.0,62556.0,0.001]
[1724765662525,0.159858,62556.0,62555.0,0.001]
[1724765662741,0.02505402,62558.0,62552.0,0.00319699]
[1724765662742,0.18490602,62558.0,62557.0,0.001]
[1724765662950,0.02505402,62558.0,62557.0,0.001]
[1724765663175,0.159841,62563.0,62557.0,0.001]
[1724765663388,0.15983,62567.0,62561.0,0.159843]
[1724765663608,0.159847,62560.0,62558.0,0.15996545]
[1724765663811,0.159842,62562.0,62559.0,0.023]
[1724765664033,0.159844,62561.0,62560.0,0.001]
[1724765664471,0.159844,62561.0,62559.0,0.18396545]
[1724765664472,0.159846,62560.0,62559.0,0.18396545]
[1724765664690,0.479539,62560.0,62559.0,0.001]
[1724765664909,0.0626,62568.0,62552.0,0.1]
[1724765665115,0.319703,62559.0,62558.0,0.001]
[1724765665581,0.479552,62559.0,62558.0,0.001]
[1724765665813,0.159844,62561.0,62557.0,0.002]
[1724765666043,0.159845,62561.0,62560.0,0.001]
[1724765666263,0.479517,62563.0,62562.0,0.001]
[1724765666471,0.319683,62562.0,62561.0,0.001]
[1724765666688,0.159849,62559.0,62558.0,0.004]
[1724765666911,0.479547,62559.0,62558.0,0.001]
[1724765667129,0.479524,62562.0,62561.0,0.001]
[1724765667345,0.319688,62561.0,62560.0,0.001]
[1724765667527,0.02505074,62566.0,62558.0,0.18296545]
[1724765667776,0.02505074,62566.0,62559.0,0.00319652]
[1724765667777,0.159842,62562.0,62559.0,0.00319652]
[1724765668013,0.02505074,62566.0,62559.0,0.16316197]
[1724765668244,0.319669,62565.0,62564.0,0.001]
[1724765668459,0.02505074,62566.0,62558.0,0.026]
[1724765668460,0.02505074,62566.0,62562.0,0.001]
[1724765668723,0.02505074,62566.0,62558.0,0.003]
[1724765668724,0.875245,62559.0,62558.0,0.004]
[1724765669224,1.194943,62559.0,62558.0,0.004]
[1724765669451,1.21999653,62559.0,62558.0,0.004]
[1724765669695,1.21999653,62559.0,62558.0,0.001]
[1724765669935,1.53969453,62559.0,62558.0,0.001]
[1724765670181,0.32190253,62559.0,62558.0,0.003]
[1724765670423,1.28099653,62559.0,62558.0,0.003]
[1724765670651,1.28099653,62559.0,62552.0,0.001]
[1724765670652,0.16205353,62559.0,62552.0,0.001]
[1724765670891,0.479592,62553.0,62552.0,0.001]
[1724765671131,0.16205353,62559.0,62542.0,0.001]
[1724765671372,0.16205353,62559.0,62558.0,0.001]
[1724765671373,0.64160053,62559.0,62558.0,0.001]
[1724765671630,0.159864,62553.0,62536.0,0.184631]
[1724765671871,0.16205353,62559.0,62546.0,0.159881]
[1724765671872,0.49475153,62559.0,62546.0,0.159881]
[1724765672126,0.159861,62555.0,62550.0,0.159871]
[1724765672372,0.48175153,62559.0,62547.0,0.15996545]
[1724765672607,0.159872,62550.0,62548.0,0.023]
[1724765672848,0.49175153,62559.0,62551.0,0.001]
[1724765673084,1.037399,62552.0,62551.0,0.001]
[1724765673319,0.319779,62543.0,62542.0,0.001]
[1724765673552,0.397933,62552.0,62542.0,0.002]
[1724765673553,0.159881,62547.0,62542.0,0.002]
[1724765673816,0.159881,62547.0,62543.0,0.001]
[1724765673817,0.159888,62544.0,62543.0,0.001]
[1724765674061,0.159888,62544.0,62540.0,0.1]
[1724765674062,0.159891,62543.0,62540.0,0.1]
[1724765674275,0.159891,62543.0,62542.0,0.001]
[1724765674746,0.159895,62541.0,62540.0,0.26096545]
[1724765674981,0.159895,62541.0,62540.0,0.101]
[1724765675202,0.31977,62545.0,62536.0,0.109031]
[1724765675453,0.479654,62545.0,62544.0,0.001]
[1724765675671,0.159874,62549.0,62548.0,0.001]
[1724765675905,0.159874,62549.0,62537.0,0.28296545]
[1724765675906,0.319749,62549.0,62543.0,0.006]
[1724765676121,0.479661,62544.0,62543.0,0.16696545]
[1724765676391,0.319768,62546.0,62545.0,0.001]
[1724765676839,0.479653,62545.0,62544.0,0.006]
[1724765677084,0.159884,62545.0,62544.0,0.006]
[1724765677337,0.159884,62545.0,62544.0,0.001]
[1724765677620,0.159875,62549.0,62548.0,0.001]
[1724765677858,0.319694,62560.0,62551.0,0.319736]
[1724765678118,0.319694,62560.0,62543.0,0.006]
[1724765678119,0.159864,62553.0,62552.0,0.001]
[1724765678347,0.00239985,62559.0,62544.0,0.15996545]
[1724765678348,0.159883,62546.0,62544.0,0.15996545]
[1724765678588,0.319745,62550.0,62544.0,0.15996545]
[1724765678589,0.001,62545.0,62544.0,0.16496545]
[1724765678825,0.30446545,62565.0,62543.0,0.165889]
[1724765678826,0.479661,62544.0,62543.0,0.006]
[1724765679070,0.479661,62544.0,62543.0,0.001]
[1724765679071,1.119209,62544.0,62543.0,0.001]
[1724765679315,1.119209,62544.0,62540.0,0.001]
[1724765679316,0.159895,62541.0,62540.0,0.001]
[1724765679537,0.159892,62543.0,62542.0,0.001]
[1724765679763,0.79945,62543.0,62542.0,0.001]
[1724765680272,0.479671,62543.0,62542.0,0.001]
[1724765680980,0.80045,62543.0,62542.0,0.007]
[1724765681470,0.80145,62543.0,62542.0,0.014]
[1724765681740,0.80145,62543.0,62542.0,0.013]
[1724765681741,2.10047064,62543.0,62542.0,0.013]
[1724765681984,1.265235,62537.0,62536.0,0.009031]
[1724765682226,2.06382045,62537.0,62536.0,0.009031]
[1724765682468,2.24885277,62537.0,62536.0,0.009031]
[1724765682695,2.34885277,62537.0,62536.0,0.009031]
[1724765682942,2.66966277,62537.0,62536.0,0.009031]
[1724765683181,0.94483,62521.0,62520.0,0.009031]
[1724765683415,1.42468745,62521.0,62520.0,0.009031]
[1724765684131,1.28979224,62521.0,62520.0,0.009031]
[1724765684401,1.28979224,62521.0,62520.0,0.010031]
[1724765684643,1.28979224,62521.0,62520.0,0.009031]
[1724765684644,1.30379224,62521.0,62520.0,0.009031]
[1724765685141,1.91402891,62521.0,62520.0,0.009031]
[1724765685391,1.90002891,62521.0,62520.0,0.009031]
[1724765685645,1.90702891,62521.0,62520.0,0.009031]
[1724765685874,1.92102891,62521.0,62520.0,0.009031]
[1724765686127,2.34092091,62521.0,62520.0,0.009031]
[1724765686377,2.00702891,62521.0,62520.0,0.009031]
[1724765686648,2.02002891,62521.0,62520.0,0.009031]
[1724765686874,2.02102891,62521.0,62520.0,0.009031]
[1724765687103,2.34494091,62521.0,62520.0,0.009031]
[1724765687327,2.67883291,62521.0,62520.0,0.009031]
[1724765687574,2.35894091,62521.0,62520.0,0.009031]
[1724765687822,1.88464969,62521.0,62520.0,0.009031]
[1724765688051,2.21854169,62521.0,62520.0,0.009031]
[1724765688323,1.927633,62512.0,62511.0,0.009031]
[1724765688590,2.8874399,62512.0,62511.0,0.009031]
[1724765689072,1.784002,62496.0,62491.0,0.0004]
[1724765689316,2.09146745,62496.0,62491.0,0.0004]
[1724765690052,2.06857545,62496.0,62491.0,0.0004]
[1724765690298,2.5724529,62496.0,62491.0,0.0004]
[1724765690546,2.37651472,62496.0,62491.0,0.0004]
[1724765691229,2.21654927,62496.0,62491.0,0.0004]
[1724765691770,2.24354927,62496.0,62491.0,0.0004]
[1724765692042,1.89963727,62496.0,62491.0,0.0004]
[1724765692260,1.29265182,62496.0,62491.0,0.0004]
[1724765692505,1.32065182,62496.0,62491.0,0.0004]
[1724765692735,1.25535182,62496.0,62491.0,0.0004]
[1724765693024,0.83913182,62496.0,62491.0,0.0004]
[1724765693272,0.51911182,62496.0,62491.0,0.0004]
[1724765693512,0.84913182,62496.0,62491.0,0.0004]
[1724765693731,0.19509182,62496.0,62491.0,0.160422]
[1724765693976,0.18509182,62496.0,62491.0,0.00360014]
[1724765694245,0.49203,62496.0,62491.0,0.0004]
[1724765694497,1.19756985,62496.0,62491.0,0.0004]
[1724765694763,1.6815553,62496.0,62491.0,0.0004]
[1724765694994,1.7439553,62496.0,62491.0,0.0004]
[1724765695222,2.0639753,62496.0,62491.0,0.0004]
[1724765695448,2.22694075,62496.0,62491.0,0.0004]
[1724765695675,2.32694075,62496.0,62491.0,0.0004]
[1724765696162,2.32394075,62496.0,62491.0,0.0004]
[1724765696389,2.01792075,62496.0,62491.0,0.0004]
[1724765696853,2.00392075,62496.0,62491.0,0.0004]
[1724765697106,2.01392075,62496.0,62491.0,0.0004]
[1724765697553,2.02792075,62496.0,62491.0,0.0004]
[1724765697782,2.01392075,62496.0,62491.0,0.0004]
[1724765698036,2.02792075,62496.0,62491.0,0.0004]
[1724765698512,2.01392075,62496.0,62491.0,0.0004]
[1724765698750,2.02892075,62496.0,62491.0,0.0004]
[1724765698948,2.01492075,62496.0,62491.0,0.0004]
[1724765699484,2.02892075,62496.0,62491.0,0.0004]
[1724765699715,2.01492075,62496.0,62491.0,0.0004]
[1724765700161,2.02792075,62496.0,62491.0,0.0004]
[1724765700384,2.01392075,62496.0,62491.0,0.0004]
[1724765700618,1.69390075,62496.0,62491.0,0.0004]
[1724765700855,1.38313545,62496.0,62491.0,0.0004]
[1724765701336,2.07627545,62496.0,62491.0,0.0004]
[1724765701594,2.19027545,62496.0,62491.0,0.0004]
[1724765701827,1.151087,62495.0,62494.0,2e-07]
[1724765702065,2.0369429,62495.0,62494.0,2e-07]
[1724765702291,2.6769929,62495.0,62494.0,2e-07]
[1724765702536,2.6999929,62495.0,62494.0,2e-07]
[1724765703052,2.6999929,62495.0,62480.0,0.009031]
[1724765703053,0.921157,62481.0,62480.0,0.009031]
[1724765703297,2.12121345,62481.0,62480.0,0.009031]
[1724765703563,2.86140745,62481.0,62480.0,0.009031]
[1724765703793,2.88649735,62481.0,62480.0,0.009031]
[1724765705366,2.90049735,62481.0,62480.0,0.009031]
[1724765705639,2.22676,62477.0,62476.0,0.009031]
[1724765705860,2.38672545,62477.0,62476.0,0.009031]
[1724765706101,2.48672545,62477.0,62476.0,0.009031]
[1724765707307,2.50072545,62477.0,62476.0,0.009031]
[1724765707528,2.6606909,62477.0,62476.0,0.009031]
[1724765708465,2.6466909,62477.0,62476.0,0.009031]
[1724765709146,2.6606909,62477.0,62476.0,0.009031]
[1724765709415,2.3395739,62477.0,62476.0,0.009031]
[1724765709655,0.800292,62477.0,62476.0,0.009031]
[1724765709884,0.814292,62477.0,62476.0,0.009031]
[1724765710340,0.800292,62477.0,62476.0,0.009031]
[1724765711287,0.160056,62478.0,62477.0,0.0648]
[1724765711526,0.160058,62477.0,62476.0,0.009031]
[1724765711746,0.800292,62477.0,62476.0,0.009031]
[1724765711989,1.120409,62477.0,62476.0,0.009031]
[1724765712210,0.800292,62477.0,62476.0,0.009031]
[1724765712433,0.174058,62477.0,62476.0,0.009031]
[1724765712646,0.814292,62477.0,62476.0,0.009031]
[1724765712893,1.20674704,62477.0,62476.0,0.009031]
[1724765713115,1.68882949,62477.0,62476.0,0.009031]
[1724765713365,2.00754664,62477.0,62476.0,0.009031]
[1724765713618,2.21884664,62477.0,62476.0,0.009031]
[1724765713839,2.53896364,62477.0,62476.0,0.009031]
[1724765714107,1.905731,62474.0,62457.0,0.009031]
[1724765714345,0.801357,62472.0,62457.0,0.009031]
[1724765714602,1.283849,62458.0,62457.0,0.009031]
[1724765714819,2.63584435,62458.0,62457.0,0.009031]
[1724765715042,1.548757,62454.0,62453.0,0.01255002]
[1724765715284,1.80872245,62454.0,62453.0,0.01255002]
[1724765715524,1.80872245,62454.0,62431.0,0.009442]
[1724765715525,1.121857,62452.0,62431.0,0.009442]
[1724765715767,2.5472397,62452.0,62431.0,0.009442]
[1724765716015,2.70873645,62452.0,62431.0,0.009442]
[1724765716261,3.03299316,62452.0,62431.0,0.009442]
[1724765716515,3.09647319,62452.0,62431.0,0.009442]
[1724765717502,3.09647319,62452.0,62433.0,0.0808]
[1724765717503,2.76722819,62452.0,62433.0,0.0808]
[1724765717740,2.76722819,62452.0,62431.0,0.009442]
[1724765718462,2.03959116,62452.0,62440.0,0.0661]
[1724765718702,2.03959116,62452.0,62437.0,0.009053]
[1724765718928,1.618326,62438.0,62437.0,0.009053]
[1724765719155,1.77829145,62438.0,62437.0,0.009053]
[1724765719388,2.09860845,62438.0,62437.0,0.009053]
[1724765719607,1.87829145,62438.0,62437.0,0.009053]
[1724765719865,1.90339748,62438.0,62437.0,0.009053]
[1724765720118,2.06336293,62438.0,62437.0,0.009053]
[1724765720377,2.06236293,62438.0,62437.0,0.009053]
[1724765720645,1.75649748,62438.0,62437.0,0.009053]
[1724765720902,1.42018048,62438.0,62437.0,0.009053]
[1724765721600,1.16021503,62438.0,62437.0,0.009053]
[1724765722312,1.30618048,62438.0,62437.0,0.009053]
[1724765722569,1.45079853,62438.0,62437.0,0.009053]
[1724765723055,1.43679853,62438.0,62437.0,0.009053]
[1724765723542,1.44479853,62438.0,62437.0,0.009053]
[1724765724016,1.44479853,62438.0,62437.0,0.148753]
[1724765724017,1.30618048,62438.0,62437.0,0.148753]
[1724765724257,0.98586348,62438.0,62437.0,0.148753]
[1724765724488,0.98586348,62438.0,62437.0,0.009053]
[1724765724489,1.31518048,62438.0,62437.0,0.009053]
[1724765724785,1.47514593,62438.0,62437.0,0.009053]
[1724765725721,1.46614593,62438.0,62437.0,0.009053]
[1724765725963,1.46814593,62438.0,62437.0,0.009053]
[1724765726214,1.78846293,62438.0,62437.0,0.009053]
[1724765726434,1.85396293,62438.0,62437.0,0.009053]
[1724765726876,1.85496293,62438.0,62437.0,0.009053]
[1724765727129,1.85296293,62438.0,62437.0,0.009053]
[1724765727361,1.46914593,62438.0,62437.0,0.009053]
[1724765728959,1.30618048,62438.0,62437.0,0.009053]
[1724765729180,1.31618048,62438.0,62437.0,0.009053]
[1724765729399,0.99586348,62438.0,62437.0,0.009053]
[1724765729628,0.98586348,62438.0,62437.0,0.009053]
[1724765729869,1.30618048,62438.0,62437.0,0.009053]
[1724765730093,1.44179853,62438.0,62437.0,0.009053]
[1724765730557,1.51309853,62438.0,62437.0,0.009053]
[1724765730789,1.83341553,62438.0,62437.0,0.009053]
[1724765731005,1.51309853,62438.0,62437.0,0.009053]
[1724765731451,1.52209853,62438.0,62437.0,0.009053]
[1724765731692,1.44579853,62438.0,62437.0,0.009053]
[1724765732168,1.4206925,62438.0,62437.0,0.009053]
[1724765732430,1.7410095,62438.0,62437.0,0.009053]